fUST/lending_fUST_20240705
["ID","MTS","AMOUNT","RATE_DAILY","PERIOD"]
[331254257,1720161055631,-228.4274916,0.00056438,120]
[331254258,1720161055641,-1040.79,0.00056438,120]
[331254259,1720161055650,-500.0,0.00056438,120]
[331254260,1720161055660,-776.98,0.00056438,120]
[331254261,1720161055670,-500.0,0.00056438,120]
[331254262,1720161055801,-500.0,0.00056438,120]
[331254263,1720161055811,-500.0,0.00056438,120]
[331254264,1720161055821,-500.0,0.00056438,120]
[331254265,1720161055831,-500.0,0.00056438,120]
[331254266,1720161055840,-500.0,0.00056438,120]
[331254267,1720161055850,-500.0,0.00056438,120]
[331254268,1720161055859,-778.44,0.00056438,120]
[331254269,1720161055869,-506.54507397,0.00056438,20]
[331254270,1720161055878,-1334.42,0.00056438,120]
[331254271,1720161055888,-500.0,0.00056438,120]
[331254272,1720161055897,-500.0,0.00056438,120]
[331254273,1720161055906,-500.0,0.00056438,120]
[331254274,1720161055916,-500.0,0.00056438,120]
[331254275,1720161055925,-876.06,0.00056438,120]
[331254276,1720161055935,-500.0,0.00056438,120]
[331254277,1720161055945,-500.0,0.00056438,120]
[331254278,1720161055954,-500.0,0.00056438,120]
[331254279,1720161055963,-500.0,0.00056438,120]
[331254280,1720161055973,-500.0,0.00056438,120]
[331254281,1720161055982,-500.0,0.00056438,120]
[331254282,1720161055991,-500.0,0.00056438,120]
[331254283,1720161056001,-500.0,0.00056438,120]
[331254284,1720161056012,-556.2,0.00056438,120]
[331254285,1720161056021,-500.0,0.00056438,120]
[331254286,1720161056029,-500.0,0.00056438,120]
[331254287,1720161056039,-500.0,0.00056438,120]
[331254288,1720161056048,-780.42,0.00056438,120]
[331254289,1720161056059,-500.0,0.00056438,120]
[331254290,1720161056069,-500.0,0.00056438,120]
[331254291,1720161056079,-983.03,0.00056438,120]
[331254292,1720161056088,-151.0,0.00056438,120]
[331254293,1720161056098,-7842.55,0.00056438,120]
[331254294,1720161056108,-500.0,0.00056438,120]
[331254295,1720161056117,-500.0,0.00056438,120]
[331254296,1720161056127,-500.0,0.00056438,120]
[331254297,1720161056137,-500.0,0.00056438,120]
[331254298,1720161056146,-500.0,0.00056438,120]
[331254299,1720161056156,-500.0,0.00056438,120]
[331254300,1720161056166,-500.0,0.00056438,120]
[331254301,1720161056176,-500.0,0.00056438,120]
[331254302,1720161056185,-500.0,0.00056438,120]
[331254303,1720161056195,-500.0,0.00056438,120]
[331254304,1720161056205,-500.0,0.00056438,120]
[331254305,1720161056214,-584.4,0.00056438,120]
[331254306,1720161056224,-500.0,0.00056438,120]
[331254307,1720161056233,-151.0,0.00056438,120]
[331254308,1720161056243,-265.767194,0.00056438,120]
[331254309,1720161056253,-500.0,0.00056438,120]
[331254310,1720161056266,-500.0,0.00056438,120]
[331254311,1720161056275,-500.0,0.00056438,120]
[331254312,1720161056285,-500.0,0.00056438,120]
[331254313,1720161056300,-670.8,0.00056438,120]
[331254314,1720161056311,-500.0,0.00056438,120]
[331254315,1720161056320,-500.0,0.00056438,120]
[331254316,1720161056330,-500.0,0.00056438,120]
[331254317,1720161056341,-500.0,0.00056438,120]
[331254318,1720161056351,-731.58,0.00056438,120]
[331254319,1720161056360,-500.0,0.00056438,120]
[331254320,1720161056370,-388.67154667,0.00056438,120]
[331254321,1720161056382,-500.0,0.00056438,120]
[331254322,1720161056391,-500.0,0.00056438,120]
[331254323,1720161056401,-500.0,0.00056438,120]
[331254324,1720161056411,-667.14,0.00056438,120]
[331254325,1720161056420,-500.0,0.00056438,120]
[331254326,1720161056430,-500.0,0.00056438,120]
[331254327,1720161056440,-500.0,0.00056438,120]
[331254328,1720161056450,-3106.8,0.00056438,120]
[331254329,1720161056459,-808.47,0.00056438,120]
[331254330,1720161056469,-3479.45,0.00056438,120]
[331254331,1720161056479,-500.0,0.00056438,120]
[331254332,1720161056488,-500.0,0.00056438,120]
[331254333,1720161056497,-500.0,0.00056438,120]
[331254334,1720161056509,-574.85,0.00056438,120]
[331254335,1720161056517,-691.25,0.00056438,120]
[331254336,1720161056527,-500.0,0.00056438,120]
[331254337,1720161056536,-151.0,0.00056438,120]
[331254338,1720161056546,-500.0,0.00056438,120]
[331254339,1720161056555,-418.36138187,0.00056438,120]
[331254340,1720161056565,-500.0,0.00056438,120]
[331254341,1720161056574,-786.58,0.00056438,120]
[331254342,1720161056584,-500.0,0.00056438,120]
[331254343,1720161056595,-500.0,0.00056438,120]
[331254344,1720161056604,-500.0,0.00056438,120]
[331254345,1720161056613,-500.0,0.00056438,120]
[331254346,1720161056622,-639.27,0.00056438,120]
[331254347,1720161056632,-500.0,0.00056438,120]
[331254348,1720161056643,-431.87590484,0.00056438,120]
[331254349,1720161056653,-1949.52,0.00056438,120]
[331254350,1720161056663,-500.0,0.00056438,120]
[331254351,1720161056683,-3989.98,0.00056438,120]
[331254352,1720161056694,-1086.21,0.00056438,120]
[331254353,1720161056704,-500.0,0.00056438,120]
[331254354,1720161056714,-500.0,0.00056438,120]
[331254355,1720161056724,-500.0,0.00056438,120]
[331254356,1720161056734,-1842.02,0.00056438,120]
[331254357,1720161056746,-505.4,0.00056438,120]
[331254358,1720161056756,-500.0,0.00056438,120]
[331254359,1720161056769,-801.37,0.00056438,120]
[331254360,1720161056779,-500.0,0.00056438,120]
[331254361,1720161056790,-500.0,0.00056438,120]
[331254362,1720161056800,-500.0,0.00056438,120]
[331254363,1720161056810,-500.0,0.00056438,120]
[331254364,1720161056820,-151.0,0.00056438,120]
[331254365,1720161056830,-500.0,0.00056438,120]
[331254366,1720161056840,-500.0,0.00056438,120]
[331254367,1720161056851,-500.0,0.00056438,120]
[331254368,1720161056860,-151.0,0.00056438,120]
[331254369,1720161056871,-4019.79,0.00056438,120]
[331254370,1720161056881,-151.0,0.00056438,120]
[331254371,1720161056891,-11862.09,0.00056438,120]
[331254372,1720161056901,-500.0,0.00056438,120]
[331254373,1720161056911,-677.63,0.00056438,120]
[331254374,1720161056921,-151.0,0.00056438,120]
[331254375,1720161056931,-483.81740342,0.00056438,120]
[331254376,1720161057075,-608.89259658,0.00056438,120]
[331254377,1720161057085,-500.0,0.00056438,120]
[331254378,1720161057095,-2373.77,0.00056438,120]
[331254379,1720161057105,-500.0,0.00056438,120]
[331254380,1720161057114,-500.0,0.00056438,120]
[331254381,1720161057124,-710.01,0.00056438,120]
[331254382,1720161057134,-500.0,0.00056438,120]
[331254383,1720161057144,-687.88,0.00056438,120]
[331254384,1720161057154,-500.0,0.00056438,120]
[331254385,1720161057164,-500.0,0.00056438,120]
[331254386,1720161057175,-298.545718,0.00056438,120]
[331254387,1720161057185,-298.545718,0.00056438,120]
[331254388,1720161057194,-151.0,0.00056438,120]
[331254389,1720161057204,-324.23515955,0.00056438,120]
[331254390,1720161057214,-151.0,0.00056438,120]
[331254391,1720161057224,-2188.27,0.00056438,120]
[331254392,1720161057234,-500.0,0.00056438,120]
[331254393,1720161057243,-1801.09,0.00056438,120]
[331254394,1720161057254,-500.0,0.00056438,120]
[331254395,1720161057265,-500.0,0.00056438,120]
[331254396,1720161057276,-1114.43,0.00056438,120]
[331254398,1720161057288,-500.0,0.00056438,120]
[331254399,1720161057303,-521.79,0.00056438,120]
[331254400,1720161057313,-500.0,0.00056438,120]
[331254401,1720161057322,-500.0,0.00056438,120]
[331254402,1720161057332,-1349.02,0.00056438,120]
[331254403,1720161057343,-500.0,0.00056438,120]
[331254404,1720161057353,-500.0,0.00056438,120]
[331254405,1720161057363,-500.0,0.00056438,120]
[331254406,1720161057374,-500.0,0.00056438,120]
[331254407,1720161057384,-1279.0,0.00056438,120]
[331254408,1720161057393,-500.0,0.00056438,120]
[331254409,1720161057403,-803.11,0.00056438,120]
[331254410,1720161057412,-859.99,0.00056438,120]
[331254411,1720161057421,-355.77236078,0.00056438,120]
[331254412,1720161057431,-500.0,0.00056438,120]
[331254413,1720161057440,-500.0,0.00056438,120]
[331254414,1720161057450,-500.0,0.00056438,120]
[331254415,1720161057460,-2024.24,0.00056438,120]
[331254416,1720161057470,-500.0,0.00056438,120]
[331254417,1720161057479,-1069.58,0.00056438,120]
[331254418,1720161057491,-151.0,0.00056438,120]
[331254419,1720161057505,-10664.38,0.00056438,120]
[331254420,1720161057517,-4002.1,0.00056438,120]
[331254421,1720161057526,-14357.76,0.00056438,120]
[331254422,1720161057536,-500.0,0.00056438,120]
[331254423,1720161057545,-500.0,0.00056438,120]
[331254424,1720161057555,-500.0,0.00056438,120]
[331254425,1720161057564,-500.0,0.00056438,120]
[331254426,1720161057573,-500.0,0.00056438,120]
[331254427,1720161057583,-500.0,0.00056438,120]
[331254428,1720161057594,-500.0,0.00056438,120]
[331254429,1720161057604,-500.0,0.00056438,120]
[331254430,1720161057615,-500.0,0.00056438,120]
[331254431,1720161057625,-404.95184244,0.00056438,120]
[331254432,1720161057634,-500.0,0.00056438,120]
[331254433,1720161057644,-500.0,0.00056438,120]
[331254434,1720161057653,-500.0,0.00056438,120]
[331254435,1720161057662,-1580.21,0.00056438,21]
[331254436,1720161057671,-500.0,0.00056438,120]
[331254437,1720161057682,-500.0,0.00056438,120]
[331254438,1720161057692,-500.0,0.00056438,120]
[331254439,1720161057702,-500.0,0.00056438,120]
[331254440,1720161057711,-153.0,0.00056712,60]
[331254441,1720161057721,-440.9209018,0.00056712,2]
[331254442,1720161057731,-800.0,0.000569,120]
[331254443,1720161057742,-637.22121788,0.00056986,120]
[331254444,1720161057754,-200.0,0.00056986,7]
[331254445,1720161057767,-500.0,0.00056986,120]
[331254446,1720161057777,-500.0,0.00056986,120]
[331254447,1720161057787,-500.0,0.00056986,120]
[331254448,1720161057796,-500.0,0.00056986,120]
[331254449,1720161057806,-500.0,0.00056986,120]
[331254450,1720161057816,-500.0,0.00056986,120]
[331254451,1720161057825,-774.94,0.00056986,120]
[331254452,1720161057835,-500.0,0.00056986,120]
[331254453,1720161057844,-1040.79,0.00056986,120]
[331254454,1720161057855,-500.0,0.00056986,120]
[331254455,1720161057866,-776.98,0.00056986,120]
[331254456,1720161057875,-500.0,0.00056986,120]
[331254457,1720161057884,-500.0,0.00056986,120]
[331254458,1720161057894,-500.0,0.00056986,120]
[331254459,1720161057903,-500.0,0.00056986,120]
[331254460,1720161057913,-500.0,0.00056986,120]
[331254461,1720161057922,-500.0,0.00056986,120]
[331254462,1720161057931,-500.0,0.00056986,120]
[331254463,1720161057941,-151.0,0.00056986,120]
[331254464,1720161057950,-778.44,0.00056986,120]
[331254465,1720161057960,-1334.42,0.00056986,120]
[331254466,1720161057969,-500.0,0.00056986,120]
[331254467,1720161057978,-500.0,0.00056986,120]
[331254468,1720161057987,-500.0,0.00056986,120]
[331254469,1720161057996,-500.0,0.00056986,120]
[331254470,1720161058006,-876.06,0.00056986,120]
[331254471,1720161058017,-500.0,0.00056986,120]
[331254472,1720161058026,-500.0,0.00056986,120]
[331254473,1720161058036,-614.3645481,0.00056986,120]
[331254474,1720161058045,-500.0,0.00056986,120]
[331254475,1720161058055,-500.0,0.00056986,120]
[331254476,1720161058064,-500.0,0.00056986,120]
[331254477,1720161058074,-581.99,0.00056986,120]
[331254478,1720161058083,-151.0,0.00056986,120]
[331254479,1720161058092,-500.0,0.00056986,120]
[331254480,1720161058101,-500.0,0.00056986,120]
[331254481,1720161058111,-780.42,0.00056986,120]
[331254482,1720161058121,-500.0,0.00056986,120]
[331254483,1720161058132,-500.0,0.00056986,120]
[331254484,1720161058141,-500.0,0.00056986,120]
[331254485,1720161058151,-983.03,0.00056986,120]
[331254486,1720161058161,-7842.55,0.00056986,120]
[331254487,1720161058170,-500.0,0.00056986,120]
[331254488,1720161058179,-165.96,0.00056986,120]
[331254489,1720161058188,-500.0,0.00056986,120]
[331254490,1720161058197,-500.0,0.00056986,120]
[331254491,1720161058207,-500.0,0.00056986,120]
[331254492,1720161058216,-500.0,0.00056986,120]
[331254493,1720161058225,-490.0,0.00056986,120]
[331254494,1720161058235,-641.92139059,0.00056986,120]
[331254495,1720161058244,-500.0,0.00056986,120]
[331254496,1720161058253,-500.0,0.00056986,120]
[331254497,1720161058264,-500.0,0.00056986,120]
[331254498,1720161058274,-584.4,0.00056986,120]
[331254499,1720161058283,-500.0,0.00056986,120]
[331254500,1720161058293,-500.0,0.00056986,120]
[331254501,1720161058306,-500.0,0.00056986,120]
[331254502,1720161058315,-500.0,0.00056986,120]
[331254503,1720161058325,-500.0,0.00056986,120]
[331254504,1720161058335,-670.8,0.00056986,120]
[331254505,1720161058347,-500.0,0.00056986,120]
[331254506,1720161058356,-500.0,0.00056986,120]
[331254507,1720161058366,-500.0,0.00056986,120]
[331254508,1720161058375,-500.0,0.00056986,120]
[331254509,1720161058386,-731.58,0.00056986,120]
[331254510,1720161058396,-621.56729475,0.00056986,120]
[331254511,1720161058405,-500.0,0.00056986,120]
[331254512,1720161058415,-500.0,0.00056986,120]
[331254513,1720161058424,-500.0,0.00056986,120]
[331254514,1720161058435,-667.14,0.00056986,120]
[331254515,1720161058444,-500.0,0.00056986,120]
[331254516,1720161058454,-500.0,0.00056986,120]
[331254517,1720161058463,-500.0,0.00056986,120]
[331254518,1720161058473,-3106.8,0.00056986,120]
[331254519,1720161058485,-808.47,0.00056986,120]
[331254520,1720161058494,-3479.45,0.00056986,120]
[331254521,1720161058505,-500.0,0.00056986,120]
[331254522,1720161058516,-500.0,0.00056986,120]
[331254523,1720161058526,-344.59776309,0.00056986,120]
[331254524,1720161058535,-691.25,0.00056986,120]
[331254525,1720161058545,-500.0,0.00056986,120]
[331254526,1720161058554,-151.0,0.00056986,120]
[331254527,1720161058564,-574.85,0.00056986,120]
[331254528,1720161058573,-500.0,0.00056986,120]
[331254529,1720161058583,-500.0,0.00056986,120]
[331254530,1720161058593,-786.58,0.00056986,120]
[331254531,1720161058602,-500.0,0.00056986,120]
[331254532,1720161058612,-500.0,0.00056986,120]
[331254533,1720161058621,-500.0,0.00056986,120]
[331254534,1720161058631,-504.31393783,0.00056986,120]
[331254535,1720161058640,-639.27,0.00056986,120]
[331254536,1720161058650,-500.0,0.00056986,120]
[331254537,1720161058659,-1949.52,0.00056986,120]
[331254538,1720161058669,-500.0,0.00056986,120]
[331254539,1720161058680,-3989.98,0.00056986,120]
[331254540,1720161058689,-1086.21,0.00056986,120]
[331254541,1720161058699,-500.0,0.00056986,120]
[331254542,1720161058709,-500.0,0.00056986,120]
[331254543,1720161058719,-500.0,0.00056986,120]
[331254544,1720161058728,-1842.02,0.00056986,120]
[331254545,1720161058739,-505.4,0.00056986,120]
[331254546,1720161058751,-500.0,0.00056986,120]
[331254547,1720161058763,-801.37,0.00056986,120]
[331254548,1720161058773,-500.0,0.00056986,120]
[331254549,1720161058784,-500.0,0.00056986,120]
[331254550,1720161058794,-500.0,0.00056986,120]
[331254551,1720161058804,-178.70965763,0.00056986,120]
[331254552,1720161058814,-500.0,0.00056986,120]
[331254553,1720161058824,-500.0,0.00056986,120]
[331254554,1720161058835,-4019.79,0.00056986,120]
[331254555,1720161058845,-11862.09,0.00056986,120]
[331254556,1720161058857,-500.0,0.00056986,120]
[331254557,1720161058867,-677.63,0.00056986,120]
[331254558,1720161058877,-1092.71,0.00056986,120]
[331254559,1720161058887,-500.0,0.00056986,120]
[331254560,1720161058897,-2373.77,0.00056986,120]
[331254561,1720161059103,-500.0,0.00056986,120]
[331254562,1720161059112,-500.0,0.00056986,120]
[331254563,1720161059122,-710.01,0.00056986,120]
[331254564,1720161059131,-500.0,0.00056986,120]
[331254565,1720161059140,-687.88,0.00056986,120]
[331254566,1720161059149,-500.0,0.00056986,120]
[331254567,1720161059159,-423.36744878,0.00056986,120]
[331254568,1720161059168,-2188.27,0.00056986,120]
[331254569,1720161059178,-1801.09,0.00056986,120]
[331254570,1720161059187,-500.0,0.00056986,120]
[331254571,1720161059197,-500.0,0.00056986,120]
[331254572,1720161059207,-500.0,0.00056986,120]
[331254573,1720161059216,-1114.43,0.00056986,120]
[331254574,1720161059226,-500.0,0.00056986,120]
[331254575,1720161059235,-521.79,0.00056986,120]
[331254576,1720161059247,-500.0,0.00056986,120]
[331254577,1720161059256,-500.0,0.00056986,120]
[331254578,1720161059270,-1349.02,0.00056986,120]
[331254579,1720161059280,-500.0,0.00056986,120]
[331254580,1720161059289,-534.29582643,0.00056986,120]
[331254581,1720161059303,-500.0,0.00056986,120]
[331254582,1720161059312,-500.0,0.00056986,120]
[331254583,1720161059322,-1279.0,0.00056986,120]
[331254584,1720161059331,-500.0,0.00056986,120]
[331254585,1720161059343,-803.11,0.00056986,120]
[331254586,1720161059353,-859.99,0.00056986,120]
[331254587,1720161059362,-500.0,0.00056986,120]
[331254588,1720161059371,-500.0,0.00056986,120]
[331254589,1720161059384,-2024.24,0.00056986,120]
[331254590,1720161059396,-500.0,0.00056986,120]
[331254591,1720161059407,-1069.58,0.00056986,120]
[331254592,1720161059416,-151.0,0.00056986,120]
[331254593,1720161059426,-10664.38,0.00056986,120]
[331254594,1720161059435,-4002.1,0.00056986,120]
[331254595,1720161059445,-14357.76,0.00056986,120]
[331254596,1720161059454,-500.0,0.00056986,120]
[331254597,1720161059463,-500.0,0.00056986,120]
[331254598,1720161059474,-500.0,0.00056986,120]
[331254599,1720161059483,-344.98,0.00056986,120]
[331254600,1720161059492,-500.0,0.00056986,120]
[331254601,1720161059502,-500.0,0.00056986,120]
[331254602,1720161059513,-500.0,0.00056986,120]
[331254603,1720161059523,-500.0,0.00056986,120]
[331254604,1720161059532,-500.0,0.00056986,120]
[331254605,1720161059542,-500.0,0.00056986,120]
[331254606,1720161059551,-1580.21,0.00056986,21]
[331254607,1720161059560,-500.0,0.00056986,120]
[331254608,1720161059572,-500.0,0.00056986,120]
[331254609,1720161059581,-639.06379048,0.00056986,120]
[331254610,1720161059591,-193.91698171,0.00056986,120]
[331254611,1720161059600,-151.0,0.0005726,120]
[331254612,1720161059609,-1000.0,0.00057435,30]
[331254613,1720161059619,-151.0,0.00057435,120]
[331254614,1720161059629,-151.0,0.00057435,120]
[331254615,1720161059638,-151.0,0.00057435,120]
[331254616,1720161059647,-151.0,0.00057435,120]
[331254617,1720161059657,-200.0,0.00057534,7]
[331254618,1720161059670,-500.0,0.00057534,120]
[331254619,1720161059679,-500.0,0.00057534,120]
[331254620,1720161059691,-500.0,0.00057534,120]
[331254621,1720161059702,-500.0,0.00057534,120]
[331254622,1720161059711,-324.82455744,0.00057534,120]
[331254623,1720161059720,-500.0,0.00057534,120]
[331254624,1720161059729,-774.94,0.00057534,120]
[331254625,1720161059740,-500.0,0.00057534,120]
[331254626,1720161059752,-1040.79,0.00057534,120]
[331254627,1720161059763,-500.0,0.00057534,120]
[331254628,1720161059773,-776.98,0.00057534,120]
[331254629,1720161059783,-500.0,0.00057534,120]
[331254630,1720161059792,-357.22695229,0.00057534,120]
[331254631,1720161059803,-500.0,0.00057534,120]
[331254632,1720161059812,-576.94382083,0.00057534,120]
[331254633,1720161059821,-500.0,0.00057534,120]
[331254634,1720161059831,-500.0,0.00057534,120]
[331254635,1720161059842,-500.0,0.00057534,120]
[331254636,1720161059851,-778.44,0.00057534,120]
[331254637,1720161059860,-1334.42,0.00057534,120]
[331254638,1720161059870,-500.0,0.00057534,120]
[331254639,1720161059880,-500.0,0.00057534,120]
[331254640,1720161059889,-500.0,0.00057534,120]
[331254641,1720161059899,-500.0,0.00057534,120]
[331254642,1720161059908,-876.06,0.00057534,120]
[331254643,1720161059918,-500.0,0.00057534,120]
[331254644,1720161059928,-500.0,0.00057534,120]
[331254645,1720161059937,-500.0,0.00057534,120]
[331254646,1720161059947,-500.0,0.00057534,120]
[331254647,1720161059957,-639.2790756,0.00057534,120]
[331254648,1720161059967,-500.0,0.00057534,120]
[331254649,1720161059976,-500.0,0.00057534,120]
[331254650,1720161059986,-500.0,0.00057534,120]
[331254651,1720161059995,-780.42,0.00057534,120]
[331254652,1720161060005,-500.0,0.00057534,120]
[331254653,1720161060016,-983.03,0.00057534,120]
[331254654,1720161060026,-500.0,0.00057534,120]
[331254655,1720161060035,-7842.55,0.00057534,120]
[331254656,1720161060044,-500.0,0.00057534,120]
[331254657,1720161060053,-500.0,0.00057534,120]
[331254658,1720161060063,-153.22923732,0.00057534,120]
[331254659,1720161060072,-500.0,0.00057534,120]
[331254660,1720161060081,-500.0,0.00057534,120]
[331254661,1720161060090,-500.0,0.00057534,120]
[331254662,1720161060099,-500.0,0.00057534,120]
[331254663,1720161060108,-500.0,0.00057534,120]
[331254664,1720161060118,-584.4,0.00057534,120]
[331254665,1720161060127,-500.0,0.00057534,120]
[331254666,1720161060136,-151.0,0.00057534,120]
[331254667,1720161060145,-500.0,0.00057534,120]
[331254668,1720161060155,-500.0,0.00057534,120]
[331254669,1720161060164,-500.0,0.00057534,120]
[331254670,1720161060173,-500.0,0.00057534,120]
[331254671,1720161060182,-670.8,0.00057534,120]
[331254672,1720161060191,-500.0,0.00057534,120]
[331254673,1720161060199,-500.0,0.00057534,120]
[331254674,1720161060209,-500.0,0.00057534,120]
[331254675,1720161060218,-500.0,0.00057534,120]
[331254676,1720161060227,-731.58,0.00057534,120]
[331254677,1720161060236,-464.45715354,0.00057534,120]
[331254678,1720161060245,-500.0,0.00057534,120]
[331254679,1720161060254,-500.0,0.00057534,120]
[331254680,1720161060266,-667.14,0.00057534,120]
[331254681,1720161060275,-500.0,0.00057534,120]
[331254682,1720161060284,-500.0,0.00057534,120]
[331254683,1720161060295,-500.0,0.00057534,120]
[331254684,1720161060309,-3106.8,0.00057534,120]
[331254685,1720161060318,-808.47,0.00057534,120]
[331254686,1720161060327,-3479.45,0.00057534,120]
[331254687,1720161060336,-506.67235825,0.00057534,120]
[331254688,1720161060347,-500.0,0.00057534,120]
[331254689,1720161060356,-500.0,0.00057534,120]
[331254690,1720161060365,-691.25,0.00057534,120]
[331254691,1720161060376,-574.85,0.00057534,120]
[331254692,1720161060387,-500.0,0.00057534,120]
[331254693,1720161060396,-570.48360165,0.00057534,120]
[331254694,1720161060406,-786.58,0.00057534,120]
[331254695,1720161060415,-500.0,0.00057534,120]
[331254696,1720161060424,-500.0,0.00057534,120]
[331254697,1720161060433,-500.0,0.00057534,120]
[331254698,1720161060443,-639.27,0.00057534,120]
[331254699,1720161060452,-500.0,0.00057534,120]
[331254700,1720161060461,-1949.52,0.00057534,120]
[331254701,1720161060471,-500.0,0.00057534,120]
[331254702,1720161060480,-3989.98,0.00057534,120]
[331254703,1720161060489,-1086.21,0.00057534,120]
[331254704,1720161060499,-500.0,0.00057534,120]
[331254705,1720161060508,-500.0,0.00057534,120]
[331254706,1720161060519,-500.0,0.00057534,120]
[331254707,1720161060528,-1842.02,0.00057534,120]
[331254708,1720161060538,-505.4,0.00057534,120]
[331254709,1720161060547,-500.0,0.00057534,120]
[331254710,1720161060556,-801.37,0.00057534,120]
[331254711,1720161060565,-500.0,0.00057534,120]
[331254712,1720161060575,-500.0,0.00057534,120]
[331254713,1720161060584,-500.0,0.00057534,120]
[331254714,1720161060593,-500.0,0.00057534,120]
[331254715,1720161060603,-286.57789721,0.00057534,120]
[331254716,1720161060612,-4019.79,0.00057534,120]
[331254717,1720161060621,-11862.09,0.00057534,120]
[331254718,1720161060632,-500.0,0.00057534,120]
[331254719,1720161060643,-1092.71,0.00057534,120]
[331254720,1720161060653,-677.63,0.00057534,120]
[331254721,1720161060663,-500.0,0.00057534,120]
[331254722,1720161060672,-2373.77,0.00057534,120]
[331254723,1720161060682,-500.0,0.00057534,120]
[331254724,1720161060691,-200.40847353,0.00057534,120]
[331254725,1720161060701,-710.01,0.00057534,120]
[331254726,1720161060710,-500.0,0.00057534,120]
[331254727,1720161060720,-687.88,0.00057534,120]
[331254728,1720161060729,-298.545718,0.00057534,120]
[331254729,1720161060739,-500.0,0.00057534,120]
[331254730,1720161060750,-298.545718,0.00057534,120]
[331254731,1720161060760,-151.0,0.00057534,120]
[331254732,1720161060770,-151.0,0.00057534,120]
[331254733,1720161060781,-2188.27,0.00057534,120]
[331254734,1720161060794,-1801.09,0.00057534,120]
[331254735,1720161061012,-500.0,0.00057534,120]
[331254736,1720161061022,-500.0,0.00057534,120]
[331254737,1720161061031,-500.0,0.00057534,120]
[331254738,1720161061041,-1114.43,0.00057534,120]
[331254739,1720161061051,-500.0,0.00057534,120]
[331254740,1720161061060,-521.79,0.00057534,120]
[331254741,1720161061069,-500.0,0.00057534,120]
[331254742,1720161061079,-500.0,0.00057534,120]
[331254743,1720161061088,-500.0,0.00057534,120]
[331254744,1720161061097,-1349.02,0.00057534,120]
[331254745,1720161061106,-500.0,0.00057534,120]
[331254746,1720161061115,-500.0,0.00057534,120]
[331254747,1720161061124,-1279.0,0.00057534,120]
[331254748,1720161061134,-384.24025411,0.00057534,120]
[331254749,1720161061143,-803.11,0.00057534,120]
[331254750,1720161061152,-859.99,0.00057534,120]
[331254751,1720161061161,-500.0,0.00057534,120]
[331254752,1720161061170,-500.0,0.00057534,120]
[331254753,1720161061179,-2024.24,0.00057534,120]
[331254754,1720161061188,-552.71669766,0.00057534,120]
[331254755,1720161061197,-1069.58,0.00057534,120]
[331254756,1720161061206,-10664.38,0.00057534,120]
[331254757,1720161061216,-4002.1,0.00057534,120]